fUSD/lending_fUSD_20240107
["ID","MTS","AMOUNT","RATE_DAILY","PERIOD"]
[310660297,1704637898895,-1024.89,0.00031999,2]
[310660298,1704637898906,-1024.97,0.00031999,2]
[310660299,1704637898917,-575.08,0.00031999,2]
[310660300,1704637898927,-931.43,0.00031999,2]
[310660301,1704637898937,-931.43,0.00031999,2]
[310660302,1704637898949,-931.43,0.00031999,2]
[310660303,1704637898959,-931.43,0.00031999,2]
[310660304,1704637898969,-604.19,0.00031999,2]
[310660305,1704637898980,-931.43,0.00031999,2]
[310660306,1704637898991,-931.43,0.00031999,2]
[310660307,1704637899001,-931.43,0.00031999,2]
[310660308,1704637899012,-931.57,0.00031999,2]
[310660309,1704637899021,-1027.53,0.00031999,2]
[310660310,1704637899031,-1027.53,0.00031999,2]
[310660311,1704637899041,-1027.53,0.00031999,2]
[310660312,1704637899051,-500.0,0.00031999,2]
[310660313,1704637899062,-1027.53,0.00031999,2]
[310660314,1704637899071,-500.0,0.00031999,2]
[310660315,1704637899083,-1027.53,0.00031999,2]
[310660316,1704637899093,-500.0,0.00031999,2]
[310660317,1704637899103,-1027.74,0.00031999,2]
[310660318,1704637899113,-500.0,0.00031999,2]
[310660319,1704637899123,-171.49,0.00031999,2]
[310660320,1704637899133,-522.55,0.00031999,2]
[310660321,1704637899144,-781.73,0.00031999,2]
[310660322,1704637899154,-781.73,0.00031999,2]
[310660323,1704637899163,-781.73,0.00031999,2]
[310660324,1704637899172,-781.73,0.00031999,2]
[310660325,1704637899182,-781.73,0.00031999,2]
[310660326,1704637899192,-781.96,0.00031999,2]
[310660327,1704637899202,-1482.03,0.00031999,2]
[310660328,1704637899211,-1482.03,0.00031999,2]
[310660329,1704637899221,-1482.03,0.00031999,2]
[310660330,1704637899230,-1482.03,0.00031999,2]
[310660331,1704637899240,-1482.03,0.00031999,2]
[310660332,1704637899250,-1482.17,0.00031999,2]
[310660333,1704637899260,-504.77,0.00031999,2]
[310660334,1704637899271,-504.77,0.00031999,2]
[310660335,1704637899281,-504.77,0.00031999,2]
[310660336,1704637899291,-504.77,0.00031999,2]
[310660337,1704637899302,-504.77,0.00031999,2]
[310660338,1704637899312,-504.77,0.00031999,2]
[310660339,1704637899330,-504.77,0.00031999,2]
[310660340,1704637899340,-504.8,0.00031999,2]
[310660341,1704637899353,-500.0,0.00031999,2]
[310660342,1704637899363,-582.89,0.00031999,2]
[310660343,1704637899374,-582.89,0.00031999,2]
[310660344,1704637899384,-582.89,0.00031999,2]
[310660345,1704637899394,-582.89,0.00031999,2]
[310660346,1704637899403,-582.89,0.00031999,2]
[310660347,1704637899415,-583.06,0.00031999,2]
[310660348,1704637899425,-566.19497759,0.00031999,2]
[310660349,1704637899434,-205.02,0.00031999,2]
[310660350,1704637899444,-500.0,0.00031999,2]
[310660351,1704637899455,-500.0,0.00031999,2]
[310660352,1704637899465,-500.0,0.00031999,2]
[310660353,1704637899475,-583.61895573,0.00031999,2]
[310660354,1704637899486,-629.76,0.00031999,2]
[310660355,1704637899497,-629.76,0.00031999,2]
[310660356,1704637899507,-629.76,0.00031999,2]
[310660357,1704637899517,-629.76,0.00031999,2]
[310660358,1704637899527,-500.0,0.00031999,2]
[310660359,1704637899537,-629.76,0.00031999,2]
[310660360,1704637899547,-629.76,0.00031999,2]
[310660361,1704637899558,-629.76,0.00031999,2]
[310660362,1704637899568,-629.85,0.00031999,2]
[310660363,1704637899580,-500.0,0.00031999,2]
[310660364,1704637899590,-500.0,0.00031999,2]
[310660365,1704637899599,-500.0,0.00031999,2]
[310660366,1704637899609,-574.08,0.00031999,2]
[310660367,1704637899619,-525.86,0.00031999,2]
[310660368,1704637899628,-525.86,0.00031999,2]
[310660369,1704637899638,-525.86,0.00031999,2]
[310660370,1704637899648,-525.86,0.00031999,2]
[310660371,1704637899658,-525.86,0.00031999,2]
[310660372,1704637899667,-525.86,0.00031999,2]
[310660373,1704637899677,-525.86,0.00031999,2]
[310660374,1704637899686,-525.95,0.00031999,2]
[310660375,1704637899696,-937.95,0.00031999,2]
[310660376,1704637899705,-100000.0,0.00032,2]
[310660377,1704637899715,-252.0,0.00032,7]
[310660378,1704637899726,-252.0,0.00032,7]
[310660379,1704637899737,-151.0,0.00032,7]
[310660380,1704637899747,-151.0,0.00032,7]
[310660381,1704637899758,-195.6131511,0.00032,4]
[310660382,1704637899768,-487.74738292,0.00032,4]
[310660383,1704637899779,-1200.0,0.00032,33]
[310660384,1704637899789,-500.0,0.00032,30]
[310660385,1704637899799,-500.0,0.00032,30]
[310660386,1704637899809,-500.0,0.00032,30]
[310660387,1704637899820,-500.0,0.00032,30]
[310660388,1704637899833,-500.0,0.00032,30]
[310660389,1704637899843,-500.0,0.00032,30]
[310660390,1704637899854,-155.0,0.00032,2]
[310660391,1704637899864,-500.0,0.00032,120]
[310660392,1704637899874,-150.0,0.00032,30]
[310660393,1704637899885,-79926.1510438,0.00032,2]
[310660394,1704637899894,-70803.19054873,0.00032,2]
[310660395,1704637899905,-298.00423311,0.00032,4]
[310660396,1704637899916,-700413.45674513,0.00032,4]
[310660397,1704637900167,-515178.06775914,0.00032,4]
[310660398,1704637900177,-12455.5846213,0.00032,3]
[310660399,1704637900187,-151.0,0.00032,7]
[310660400,1704637900197,-500.0,0.00032028,2]
[310660401,1704637900207,-450.0,0.000321,3]
[310660402,1704637900218,-2000.0,0.00032158,120]
[310660403,1704637900227,-2000.0,0.00032158,120]
[310660404,1704637900237,-333.40107,0.00032198,2]
[310660405,1704637900247,-174.091751,0.00032199,2]
[310660406,1704637900258,-192.331523,0.00032199,2]
[310660407,1704637900267,-249.720787,0.00032199,2]
[310660408,1704637900278,-500.0,0.00032216,2]
[310660409,1704637900288,-3000.0,0.0003224,2]
[310660410,1704637900299,-450.0,0.0003226,3]
[310660411,1704637900311,-1000.0,0.0003227,10]
[310660412,1704637900322,-31004.16136392,0.00032333,7]
[310660413,1704637900335,-175.0,0.0003239,34]
[310660414,1704637900346,-151.40107,0.00032398,2]
[310660415,1704637900355,-500.0,0.00032405,2]
[310660416,1704637900365,-450.0,0.0003242,3]
[310660417,1704637900376,-400.96,0.00032421,2]
[310660418,1704637900386,-234.40107,0.00032498,2]
[310660419,1704637900397,-150.0,0.00032499,2]
[310660420,1704637900407,-150.31601721,0.00032522,2]
[310660421,1704637900418,-151.0,0.00032526,30]
[310660422,1704637900430,-450.0,0.0003258,3]
[310660423,1704637900564,-249.720787,0.00032591,2]
[310660424,1704637900575,-500.0,0.00032593,2]
[310660425,1704637900587,-280.72,0.00032603,2]
[310660426,1704637900597,-1771.30019938,0.00032603,4]
[310660427,1704637900608,-151.40107,0.00032698,2]
[310660428,1704637900618,-450.0,0.0003274,3]
[310660429,1704637900628,-500.0,0.00032782,2]
[310660430,1704637900638,-333.40107,0.00032798,2]
[310660431,1704637900647,-1000.0,0.000328,2]
[310660432,1704637900658,-1000.0,0.000328,2]
[310660433,1704637900670,-1000.0,0.00032818,10]
[310660434,1704637900681,-3000.0,0.0003286,2]
[310660435,1704637900692,-666.0,0.00032876,2]
[310660436,1704637900705,-500.0,0.00032876,2]
[310660437,1704637900715,-536.99874049,0.00032876,2]
[310660438,1704637900726,-500.0,0.00032876,2]
[310660439,1704637900736,-500.0,0.00032876,2]
[310660440,1704637900747,-513.23578335,0.00032876,2]
[310660441,1704637900756,-1000.0,0.00032876,4]
[310660442,1704637900767,-1000.0,0.00032876,4]
[310660443,1704637900777,-1000.0,0.00032876,4]
[310660444,1704637900787,-1000.0,0.00032876,4]
[310660445,1704637900798,-1000.0,0.00032876,4]
[310660446,1704637900808,-1000.0,0.00032876,4]
[310660447,1704637900820,-236.4086919,0.00032876,4]
[310660448,1704637900832,-500.0,0.00032876,2]
[310660449,1704637900842,-500.0,0.00032876,2]
[310660450,1704637900852,-500.0,0.00032876,2]
[310660451,1704637900865,-500.0,0.00032876,2]
[310660452,1704637900875,-500.0,0.00032876,2]
[310660453,1704637900886,-500.0,0.00032876,2]
[310660454,1704637900897,-500.0,0.00032876,2]
[310660455,1704637900909,-500.0,0.00032876,2]
[310660456,1704637900920,-500.0,0.00032876,2]
[310660457,1704637900929,-500.0,0.00032876,2]
[310660458,1704637900939,-500.0,0.00032876,2]
[310660459,1704637900950,-500.0,0.00032876,2]
[310660460,1704637900960,-361.40495955,0.00032876,7]
[310660461,1704637900972,-600.65267606,0.00032876,7]
[310660462,1704637900984,-500.0,0.00032876,7]
[310660463,1704637900996,-380.15926469,0.00032876,7]
[310660464,1704637901006,-500.0,0.00032876,7]
[310660465,1704637901017,-500.0,0.00032876,7]
[310660466,1704637901028,-500.0,0.00032876,7]
[310660467,1704637901041,-500.0,0.00032876,7]
[310660468,1704637901051,-500.0,0.00032876,7]
[310660469,1704637901060,-500.0,0.00032876,7]
[310660470,1704637901070,-500.0,0.00032876,7]
[310660471,1704637901081,-500.0,0.00032876,7]
[310660472,1704637901093,-500.0,0.00032876,7]
[310660473,1704637901102,-500.0,0.00032876,7]
[310660474,1704637901112,-500.0,0.00032876,7]
[310660475,1704637901122,-500.0,0.00032876,7]
[310660476,1704637901131,-500.0,0.00032876,7]
[310660477,1704637901141,-540.25958371,0.00032876,7]
[310660478,1704637901153,-600.0,0.00032876,7]
[310660479,1704637901162,-153.84,0.00032877,2]
[310660480,1704637901174,-2634.21,0.00032877,2]
[310660481,1704637901183,-2683.95,0.00032877,15]
[310660482,1704637901193,-2500.0,0.00032877,7]
[310660483,1704637901203,-1500.0,0.00032877,7]
[310660484,1704637901213,-1500.0,0.00032877,7]
[310660485,1704637901223,-155.0,0.00032877,2]
[310660486,1704637901233,-3529.03265126,0.000329,15]
[310660487,1704637901244,-500.0,0.000329,120]
[310660488,1704637901253,-450.0,0.000329,3]
[310660489,1704637901263,-52985.3670061,0.000329,2]
[310660490,1704637901273,-1000.0,0.000329,2]
[310660491,1704637901284,-3477.0,0.000329,2]
[310660492,1704637901293,-521.0,0.000329,2]
[310660493,1704637901304,-2000.0,0.000329,2]
[310660494,1704637901315,-300.0,0.000329,2]
[310660495,1704637901332,-252.0,0.000329,7]
[310660496,1704637901342,-252.0,0.000329,7]
[310660497,1704637901352,-3000.0,0.000329,2]
[310660498,1704637901361,-300.0,0.000329,6]
[310660499,1704637901372,-151.0,0.000329,7]
[310660500,1704637901381,-500.0,0.000329,2]
[310660501,1704637901391,-151.0,0.000329,7]
[310660502,1704637901401,-500.0,0.0003297,2]
[310660503,1704637901410,-174.091751,0.00032984,2]
[310660504,1704637901419,-192.331523,0.00032984,2]
[310660505,1704637901429,-249.720787,0.00032984,2]
[310660506,1704637901439,-500.0,0.00032987,2]
[310660507,1704637901448,-1000.0,0.00032998,2]
[310660508,1704637901457,-151.40107,0.00032998,2]
[310660509,1704637901467,-846.81,0.00032999,2]
[310660510,1704637901477,-846.81,0.00032999,2]
[310660511,1704637901487,-846.81,0.00032999,2]
[310660512,1704637901498,-846.81,0.00032999,2]
[310660513,1704637901508,-846.85681276,0.00032999,2]
[310660514,1704637901519,-500.0,0.00032999,2]
[310660515,1704637901529,-500.0,0.00032999,2]
[310660516,1704637901540,-500.0,0.00032999,2]
[310660517,1704637901550,-500.0,0.00032999,2]
[310660518,1704637901560,-492.42,0.00032999,2]
[310660519,1704637901570,-100000.0,0.00033,3]
[310660520,1704637901580,-155.0,0.00033,4]
[310660521,1704637901591,-1180.53164638,0.00033,2]
[310660522,1704637901600,-1682.66066993,0.00033,4]
[310660523,1704637901611,-1200.0,0.00033,34]
[310660524,1704637901621,-5000.0,0.00033,10]
[310660525,1704637901631,-1000.0,0.00033,3]
[310660526,1704637901640,-1010.0,0.00033,3]
[310660527,1704637901650,-111939.14889938,0.00033,4]
[310660528,1704637901660,-2500.0,0.00033,4]
[310660529,1704637901670,-1000.0,0.00033,2]
[310660530,1704637901680,-800.0,0.00033,3]
[310660531,1704637901689,-150.31601721,0.00033046,2]
[310660532,1704637901700,-450.0,0.0003306,3]
[310660533,1704637901710,-203.0,0.00033072,9]
[310660534,1704637901721,-500.0,0.00033159,2]
[310660535,1704637901731,-2046.0,0.00033185,5]
[310660536,1704637901741,-234.40107,0.00033198,2]
[310660537,1704637901751,-150.77373,0.000332,2]
[310660538,1704637901762,-450.0,0.0003322,3]
[310660539,1704637901772,-177.65,0.00033339,2]
[310660540,1704637901783,-500.0,0.00033347,2]
[310660541,1704637901793,-775.42,0.00033356,2]
[310660542,1704637901803,-1000.0,0.00033366,10]
[310660543,1704637901814,-450.0,0.0003338,3]
[310660544,1704637901825,-234.40107,0.00033398,2]
[310660545,1704637901835,-400.96,0.000334,2]
[310660546,1704637901845,-11874.6079896,0.00033412,10]
[310660547,1704637901855,-5864.41823499,0.00033424,4]
[310660548,1704637901903,-1134.86328458,0.00033424,4]
[310660549,1704637901913,-150.0,0.00033452,120]
[310660550,1704637901924,-2100.03,0.0003347,7]
[310660551,1704637901935,-2100.03,0.0003347,7]
[310660552,1704637901946,-2100.03,0.0003347,7]
[310660553,1704637901956,-2100.03,0.0003347,7]
[310660554,1704637901967,-3000.0,0.0003349,2]
[310660555,1704637901977,-333.40107,0.00033498,2]
[310660556,1704637901986,-150.0,0.00033499,2]
[310660557,1704637901996,-4144.31,0.000335,2]
[310660558,1704637902006,-4144.31,0.000335,2]
[310660559,1704637902016,-4144.31,0.000335,2]
[310660560,1704637902027,-4144.31,0.000335,2]
[310660561,1704637902037,-4144.31,0.000335,2]
[310660562,1704637902048,-4144.31,0.000335,2]
[310660563,1704637902059,-4144.31,0.000335,2]
[310660564,1704637902068,-4144.31,0.000335,2]
[310660565,1704637902079,-4144.31,0.000335,2]
[310660566,1704637902088,-4144.31,0.000335,2]
[310660567,1704637902097,-4144.31,0.000335,2]
[310660568,1704637902106,-4144.31,0.000335,2]
[310660569,1704637902116,-4144.31,0.000335,2]
[310660570,1704637902126,-4144.31,0.000335,2]
[310660571,1704637902136,-4144.31,0.000335,2]
[310660572,1704637902146,-4144.31,0.000335,2]
[310660573,1704637902156,-4144.31,0.000335,2]
[310660574,1704637902165,-4144.31,0.000335,2]
[310660575,1704637902175,-4144.31,0.000335,2]
[310660576,1704637902187,-4144.31,0.000335,2]
[310660577,1704637902198,-500.0,0.00033536,2]
[310660578,1704637902208,-450.0,0.0003354,3]
[310660579,1704637902219,-150.0,0.00033555,120]
[310660580,1704637902228,-150.31601721,0.0003357,2]
[310660581,1704637902239,-5046.52181974,0.00033587,2]
[310660582,1704637902248,-10555.19926766,0.00033592,10]
[310660583,1704637902258,-13451.32398215,0.00033592,10]
[310660584,1704637902271,-20233.98288108,0.00033621,10]
[310660585,1704637902281,-500.0,0.000337,120]
[310660586,1704637902292,-450.0,0.000337,3]
[310660587,1704637902303,-500.0,0.00033724,2]
[310660588,1704637902314,-1771.30019938,0.00033729,5]
[310660589,1704637902325,-2100.03,0.00033744,7]
[310660590,1704637902338,-2100.03,0.00033744,7]
[310660591,1704637902348,-150.0,0.00033744,120]
[310660592,1704637902359,-153.84,0.0003379,2]
[310660593,1704637902372,-234.40107,0.00033798,2]
[310660594,1704637902384,-150.0,0.000338,3]
[310660595,1704637902395,-1000.0,0.000338,2]
[310660596,1704637902405,-1000.0,0.000338,2]
[310660597,1704637902416,-450.0,0.0003386,3]
[310660598,1704637902428,-151.0,0.00033867,4]
[310660599,1704637902439,-150.0,0.0003387,120]
[310660600,1704637902452,-5000.0,0.000339,2]
[310660601,1704637902465,-300.0,0.000339,7]
[310660602,1704637902478,-177.60161282,0.000339,2]
[310660603,1704637902489,-365.23034946,0.000339,2]
[310660604,1704637902500,-500.0,0.00033913,2]
[310660605,1704637902512,-1000.0,0.00033914,10]
[310660606,1704637902523,-150.0,0.00033941,120]
[310660607,1704637902533,-171.74494673,0.00033963,2]
[310660608,1704637902545,-500.0,0.00033987,3]
[310660609,1704637902555,-1000.0,0.00033998,2]
[310660610,1704637902565,-100000.0,0.00034,4]
[310660611,1704637902575,-1000.0,0.00034,4]
[310660612,1704637902586,-1200.0,0.00034,35]
[310660613,1704637902595,-3000.0,0.00034,10]
[310660614,1704637902606,-25908.0,0.00034,14]
[310660615,1704637902615,-28180.11180106,0.00034,2]
[310660616,1704637902624,-1500.0,0.00034,2]
[310660617,1704637902634,-224.96892402,0.00034,2]
[310660618,1704637902644,-464.08518596,0.00034,2]
[310660619,1704637902654,-17078.54640767,0.00034,7]
[310660620,1704637902664,-233741.37406301,0.00034,30]
[310660621,1704637902687,-500.0,0.00022795,2]
[310660622,1704637902699,-1469.775115,0.00034,30]
[310660623,1704637902711,-854.04866135,0.00034,30]
[310660624,1704637903505,-500.0,0.00022493,2]
[310660625,1704637903515,-500.0,0.00022493,2]
[310660626,1704637903525,-500.0,0.00022493,2]
[310660627,1704637903534,-437.61930516,0.00022494,2]
[310660628,1704637903544,-500.0,0.00022494,2]
[310660629,1704637903555,-500.0,0.00022494,2]
[310660630,1704637903565,-500.0,0.00022494,2]
[310660631,1704637903575,-500.0,0.00022494,2]
[310660632,1704637903586,-500.0,0.00022494,2]
[310660633,1704637903596,-500.0,0.00022494,2]
[310660634,1704637903606,-500.0,0.00022494,2]
[310660635,1704637903616,-500.0,0.00022494,2]
[310660636,1704637903625,-500.0,0.00022494,2]
[310660637,1704637903635,-500.0,0.00022494,2]
[310660638,1704637903645,-500.0,0.00022494,2]
[310660639,1704637903655,-500.0,0.00022494,2]
[310660640,1704637903664,-500.0,0.00022494,2]
[310660641,1704637903674,-500.0,0.00022494,2]
[310660642,1704637903683,-500.0,0.00022494,2]
[310660643,1704637903693,-500.0,0.00022496,2]
[310660644,1704637903702,-500.0,0.00022496,2]
[310660645,1704637903712,-194.16,0.00022497,2]
[310660646,1704637903722,-500.0,0.00022497,2]
[310660647,1704637903731,-500.0,0.00022497,2]
[310660648,1704637903740,-500.0,0.00022497,2]
[310660649,1704637903750,-500.0,0.00022498,2]
[310660650,1704637903759,-500.0,0.00022498,2]
[310660651,1704637903769,-500.0,0.00022498,2]
[310660652,1704637903779,-500.0,0.00022565,2]
[310660653,1704637903788,-356.22,0.00022565,2]
[310660654,1704637903797,-648.0,0.00022566,2]
[310660655,1704637903807,-500.0,0.00022566,2]
[310660656,1704637903817,-500.0,0.00022566,2]
[310660657,1704637903826,-500.0,0.00022566,2]
[310660658,1704637903835,-500.0,0.00022566,2]
[310660659,1704637903845,-500.0,0.00022664,2]
[310660660,1704637903854,-500.0,0.00022665,2]
[310660661,1704637903864,-500.0,0.00022665,2]
[310660662,1704637903873,-500.0,0.00022666,2]
[310660663,1704637903883,-500.0,0.00022667,2]
[310660664,1704637903892,-500.0,0.00022667,2]
[310660665,1704637903902,-500.0,0.00022667,2]
[310660666,1704637903911,-541.62,0.00022797,2]
[310660667,1704637903921,-500.0,0.00022797,2]
[310660668,1704637903930,-201.11,0.00022896,2]
[310660669,1704637903939,-500.0,0.00022898,2]
[310660670,1704637903949,-500.0,0.00022898,2]
[310660671,1704637903958,-500.0,0.00022898,2]
[310660672,1704637903968,-500.0,0.00023299,2]
[310660673,1704637903977,-573.37,0.00027943,2]
[310660674,1704637903986,-500.0,0.00029281,2]
[310660675,1704637903996,-500.0,0.00029281,2]
[310660676,1704637904006,-500.0,0.00029281,2]
[310660677,1704637904015,-272.04,0.00029999,2]
[310660678,1704637904024,-500.0,0.00029999,2]
[310660679,1704637904034,-611.95659858,0.00029999,2]
[310660680,1704637904043,-500.0,0.00029999,2]
[310660681,1704637904053,-500.0,0.00029999,2]
[310660682,1704637904062,-500.0,0.00029999,2]
[310660683,1704637904072,-500.0,0.00029999,2]
[310660684,1704637904082,-500.0,0.00030899,2]
[310660685,1704637904091,-500.0,0.00030899,2]
[310660686,1704637904100,-500.0,0.00030899,2]
[310660687,1704637904112,-509.25709252,0.00030899,2]
[310660688,1704637904122,-500.0,0.00030999,2]
[310660689,1704637904131,-500.0,0.00031044,2]
[310660690,1704637904141,-22869.34258655,0.00031979,7]
[310660691,1704637904150,-937.95,0.00031999,2]
[310660692,1704637904159,-500.0,0.00031999,2]
[310660693,1704637904168,-937.95,0.00031999,2]
[310660694,1704637904177,-500.0,0.00031999,2]
[310660695,1704637904186,-937.95,0.00031999,2]
[310660696,1704637904196,-500.0,0.00031999,2]
[310660697,1704637904205,-937.95,0.00031999,2]
[310660698,1704637904215,-500.0,0.00031999,2]
[310660699,1704637904224,-938.08,0.00031999,2]
[310660700,1704637904233,-500.0,0.00031999,2]
[310660701,1704637904242,-500.0,0.00031999,2]
[310660702,1704637904252,-515.87,0.00031999,2]
[310660703,1704637904261,-500.0,0.00031999,2]
[310660704,1704637904271,-500.0,0.00031999,2]
[310660705,1704637904280,-242.49093651,0.00031999,2]
[310660706,1704637904289,-157265.84930025,0.00034,30]
[310660707,1704637904305,-443.87,0.00034,30]
[310660708,1704637904986,-561.504982,0.00022493,2]
[310660709,1704637905051,-378.705018,0.00022493,2]
[310660710,1704637905061,-500.0,0.00022493,2]
[310660711,1704637905070,-500.0,0.00022493,2]
[310660712,1704637905080,-500.0,0.00022493,2]
[310660713,1704637905089,-427.07190441,0.00022493,2]
[310660714,1704637905105,-339.54809559,0.00022493,2]
[310660715,1704637905115,-108.33996342,0.00022493,2]
[310660716,1704637908945,1813.7412,0.00022392,2]
[310660717,1704637914325,2869.0,0.000301,90]
[310660718,1704637914595,173674.174,0.00022393,2]
[310660719,1704637919153,129072.70896353,0.00022392,2]
[310660720,1704637930569,100000.0,0.00022393,2]
[310660721,1704637938653,2500.0,0.00022394,2]
[310660722,1704638065680,178.33,0.00022057,2]
[310660723,1704638093688,1000.0,0.00021801,2]
[310660724,1704638119552,4604.9919,0.00022393,2]
[310660725,1704638121329,159.39,0.00021801,2]
[310660726,1704638122972,155.44,0.0002032,2]
[310660728,1704638176280,186.81894592,0.00022394,2]
[310660729,1704638233471,1217.34644427,0.00022491,2]
[310660730,1704638250340,45623.12029302,0.00022393,2]
[310660731,1704638250365,9931.87970698,0.00022393,2]
[310660732,1704638267496,150.0,0.00022394,2]
[310660733,1704638267517,150.0,0.00022394,2]
[310660734,1704638267538,5.54332142,0.00022394,2]
[310660744,1704638281716,150.0,0.00022491,2]
[310660745,1704638281737,5.0,0.00022491,2]
[310660748,1704638283036,-167.87467006,0.00022492,2]
[310660750,1704638283691,150.0,0.00022394,2]
[310660751,1704638283712,24.41039487,0.00022394,2]
[310660881,1704638347350,177.60161282,0.00022394,2]
[310660890,1704638353354,-131.2058078,0.00022492,2]
[310660891,1704638353375,-156.43580585,0.00022492,2]
[310660988,1704638408103,-150.0,0.00022491,2]
[310661008,1704638410241,-8.41091363,0.00022491,2]
[310661012,1704638410502,141.58908637,0.00022491,2]
[310661013,1704638410523,14.44654188,0.00022491,2]
[310661019,1704638412282,135.55345812,0.00022491,2]
[310661020,1704638412302,116.68523901,0.00022491,2]
[310661024,1704638412668,33.31476099,0.00022491,2]
[310661026,1704638412688,150.0,0.00022491,2]
[310661027,1704638412707,150.0,0.00022491,2]
[310661028,1704638412727,45.73414179,0.00022491,2]
[310661030,1704638413046,104.26585821,0.00022491,2]
[310661031,1704638413070,50.73414179,0.00022491,2]
[310661059,1704638420672,-150.0,0.00022491,2]
[310661060,1704638420720,-64.52914029,0.00022491,2]
[310661061,1704638420740,-85.47085971,0.00022491,2]
[310661062,1704638420775,-70.55774947,0.00022491,2]
[310661063,1704638435064,150.0,0.00022491,2]
[310661064,1704638435090,9.4438917,0.00022491,2]
[310661065,1704638435198,140.5561083,0.00022491,2]
[310661066,1704638435218,150.0,0.00022491,2]
[310661067,1704638435238,150.0,0.00022491,2]
[310661068,1704638435259,73.14394244,0.00022491,2]
[310661069,1704638436084,76.85605756,0.00022491,2]
[310661070,1704638436105,129.76590337,0.00022491,2]
[310661071,1704638437051,20.23409663,0.00022491,2]
[310661072,1704638437075,150.0,0.00022491,2]
[310661073,1704638437098,92.71338933,0.00022491,2]
[310661074,1704638437516,57.28661067,0.00022491,2]
[310661075,1704638437541,97.71338933,0.00022491,2]
[310661076,1704638437679,52.28661067,0.00022491,2]
[310661077,1704638437701,150.0,0.00022491,2]
[310661078,1704638437723,150.0,0.00022491,2]
[310661079,1704638437747,133.08666236,0.00022491,2]
[310661080,1704638438539,45.62144638,0.00022491,2]
[310661081,1704638445662,158.1942,0.00022393,2]
[310661082,1704638447858,203.69554762,0.00022397,2]
[310661108,1704638462940,25160.35995829,0.0002249,2]
[310661113,1704638465324,155.0,0.00022378,2]
[310661117,1704638467199,158.33436037,0.0002249,2]
[310661129,1704638471104,579.61035159,0.0002249,2]
[310661135,1704638479044,12015.90653584,0.00022265,2]
[310661187,1704638496184,100000.0,0.00022392,2]
[310661188,1704638501692,55555.0,0.00022393,2]
[310661193,1704638513801,905.72,0.00021716,2]
[310661227,1704638591466,244.90207093,0.00022397,6]
[310661228,1704638598058,243.48689964,0.00022393,2]
[310661229,1704638599085,442.8,0.00021715,2]
[310661237,1704638640473,2104.92910726,0.00022393,2]
[310661238,1704638648903,-150.0,0.00022491,2]
[310661239,1704638648925,-173.04012672,0.00022491,2]
[310661240,1704638648946,-569.858,0.00022491,2]
[310661241,1704638648968,-109.8515071,0.00022491,2]
[310661242,1704638648988,-281.1936198,0.00022491,2]
[310661243,1704638649010,-171.8392514,0.00022491,2]
[310661244,1704638649033,-181.81200294,0.00022491,2]